Cogmind - Beta 14 *** ADVENTURER MODE // 2024.09.10 @ 02:39:38 Player: Ms. V3-11A Result: Destroyed by Tracker with Linked Autogun Performance ------------- Evolutions (7) 3500 Regions Visited (19) 3800 Robots Destroyed (212) 1060 Value Destroyed (11071) 11071 Prototype IDs (56) 1120 Alien Tech Used (2) 400 Bonus (5561) 5561 TOTAL SCORE: 26512 Bonus ------- High Alert Combat Kills 637 Follower Combat Kills 908 Registered with UFD 300 Met Data Miner 300 Found Hidden Lab 3000 Pursued by Intercept 500 Friendly Fire -84 Cogmind --------- Core Integrity 0/1300 Matter 203/350 Energy 69/100 System Corruption 41% Temperature Cool (0) Movement Walking (120) Location -3/Testing Parts ------- > --- POWER (3) -------- (None) > --- PROPULSION (4) --- Myomer Leg Advanced Myomer Leg > --- UTILITY (10) ----- High-capacity Storage Unit Small Matter Pod > --- WEAPON (4) ------- Cooled Nova Cannon > --- INVENTORY (20) --- Advanced Heat Sink Large Storage Unit Advanced Force Field Component Analysis Suite Advanced Recalibrator Disintegrator Heavy Shock Bomb Launcher Plasma Cutter Multitool Peak State ------------ > --- POWER ------------ Light Antimatter Reactor Particle Reactor Particle Reactor > --- PROPULSION ------- Centrium Heavy Treads Centrium Heavy Treads > --- UTILITY ---------- Advanced Heat Sink Advanced Heat Sink Advanced Heat Sink High-capacity Storage Unit Spectral Analyzer Experimental Signal Interpreter Improved Targeting Computer Improved Targeting Computer Energy Mantle Hacking Suite > --- WEAPON ----------- Heavy Dispersion Rifle Disintegrator Linear Accelerator > --- INVENTORY -------- Light Antimatter Reactor Flexi-carbon Leg Flexi-carbon Leg Myomer Leg Advanced Myomer Leg Advanced Heat Sink Large Storage Unit Advanced Force Field Component Analysis Suite Advanced Recalibrator Quantum Rifle Heavy Neutron Cannon Nova Cannon Cooled Nova Cannon High-powered Shotgun Heavy Shock Bomb Launcher Plasma Cutter Multitool [Rating: 160] Favorites ----------- Power Enhanced Fission Core Engine Light Angular Momentum Engine Power Core Enhanced Fission Core Reactor Particle Reactor Propulsion Flexi-carbon Leg Treads Light Treads Leg Flexi-carbon Leg Hover Unit Improved Antigrav System Flight Unit Xenon Bombardment Thruster Utility High-capacity Storage Unit Device Improved Cryofiber Web Storage High-capacity Storage Unit Processor Advanced Signal Interpreter Hackware Hacking Suite Protection Makeshift Light Armor Plating Weapon Barrage Gun Energy Gun Quantum Rifle Energy Cannon Phase Cannon Ballistic Gun Barrage Gun Ballistic Cannon Magnetic Acceleration Cannon Launcher Improved Proton Missile Launcher Special Weapon Multitool Piercing Weapon Enhanced Force Lance Special Melee Weapon Improved Datajack Build | -11 -10 -10 -9 -9 -6 -6 -6 -6 -5 -5 -5 -5 -5 -4 -4 -4 -4 -3 -3 ------- Run | Yrd Mat Sub Rec Scr Fac Low Low Dat Pro Fac Upp Upp Zhi Pro Fac Arm Lab Res Tes Slots Evolved 14 | . . . . . 8 . . . . 2 . . . . 2 . . 2 . Power 2 | . . . . . 1 . . . . . . . . . . . . 1 . Propulsion 2 | . . . . . 1 . . . . 1 . . . . . . . . . Utility 8 | . . . . . 5 . . . . 1 . . . . 1 . . 1 . Weapon 2 | . . . . . 1 . . . . . . . . . 1 . . . . Parts Attached 285 | . 9 16 . 5 27 1 2 3 31 18 2 7 11 7 26 13 . 47 60 Power 47 | . 1 2 . 2 5 1 . . 4 2 1 . . 2 6 2 . 9 10 Engine 12 | . . 2 . 2 1 1 . . 2 1 1 . . . . 2 . . . Core 12 | . 1 . . . 4 . . . 1 1 . . . 2 3 . . . . Reactor 23 | . . . . . . . . . 1 . . . . . 3 . . 9 10 Propulsion 56 | . 4 5 . 2 3 . . . 4 2 1 1 4 1 6 4 . 10 9 Treads 10 | . 3 5 . . . . . . . . . . . . . . . . 2 Leg 34 | . 1 . . 2 3 . . . 4 2 1 1 4 1 6 . . 2 7 Wheel . | . . . . . . . . . . . . . . . . . . . . Hover 6 | . . . . . . . . . . . . . . . . 2 . 4 . Flight 6 | . . . . . . . . . . . . . . . . 2 . 4 . Utility 86 | . 2 2 . 1 11 . 2 . 12 8 . 4 4 1 5 4 . 13 17 Device 40 | . . . . . 8 . 1 . 6 2 . 2 1 1 1 2 . 5 11 Storage 11 | . 1 . . 1 . . . . . 2 . . 1 . 1 . . 2 3 Processor 11 | . . . . . 1 . . . 1 1 . . . . 1 . . 5 2 Hackware 5 | . . . . . . . . . 1 . . . 1 . . 2 . . 1 Protection 19 | . 1 2 . . 2 . 1 . 4 3 . 2 1 . 2 . . 1 . Artifact . | . . . . . . . . . . . . . . . . . . . . Weapon 96 | . 2 7 . . 8 . . 3 11 6 . 2 3 3 9 3 . 15 24 Energy Gun 22 | . 1 2 . . 1 . . . 4 2 . . 1 . 1 . . 7 3 Energy Cannon 25 | . 1 . . . 3 . . 1 3 1 . 1 . 1 4 . . 1 9 Ballistic Gun 31 | . . 5 . . 1 . . 1 1 1 . 1 2 1 2 . . 6 10 Ballistic Cannon 9 | . . . . . 3 . . 1 2 . . . . 1 . . . . 2 Launcher 4 | . . . . . . . . . 1 1 . . . . 2 . . . . Special Weapon 2 | . . . . . . . . . . 1 . . . . . . . 1 . Impact Weapon . | . . . . . . . . . . . . . . . . . . . . Slashing Weapon . | . . . . . . . . . . . . . . . . . . . . Piercing Weapon 2 | . . . . . . . . . . . . . . . . 2 . . . Special Melee Weapon 1 | . . . . . . . . . . . . . . . . 1 . . . Unidentified Prototypes 20 | . . . . . . . . . . 1 . . 6 . 1 1 . 2 9 Corrupted Parts 12 | . . 1 . . 3 . . . 2 . . . . . 2 . . 1 3 System Corruption 49 | . . 1 . . 13 . . . 5 . . . . . 16 . . 2 12 Parts Lost 124 | . . 10 . . 4 . . . 19 2 1 4 . 6 27 . . 21 30 Power 26 | . . 2 . . 2 . . . 3 1 . . . 2 6 . . 6 4 Propulsion 27 | . . 4 . . 1 . . . 3 . 1 2 . . 4 . . 6 6 Utility 36 | . . 2 . . 1 . . . 7 1 . 2 . 1 7 . . 5 10 Weapon 35 | . . 2 . . . . . . 6 . . . . 3 10 . . 4 10 Highest Loss Streak 21 | . . 4 . . 2 . . . 17 2 1 3 . 4 10 . . 13 21 To Critical Strikes 3 | . . . . . . . . . . . . . . . 1 . . 2 . Average Slot Usage (%) 88 | . 97 97 85 88 73 100 100 81 94 90 97 95 78 98 90 24 42 70 81 Engine 3 | . 5 9 . 3 4 4 6 6 5 . 3 5 5 1 . 3 5 3 . Core 3 | . 8 2 . . 4 8 6 6 5 4 5 5 5 8 6 . . . . Reactor 1 | . . . . . . . . . . 4 . . . . 2 . . 7 12 Treads 6 | . 9 27 28 12 . . . . . . . . . . . . . . 6 Leg 14 | . 18 . . 15 15 20 20 20 19 23 22 20 22 22 19 . . 3 2 Device 10 | . . . . . 9 20 24 26 21 17 17 17 17 20 20 1 5 7 13 Storage 7 | . 14 14 14 14 4 6 6 6 6 5 5 5 5 5 4 . . . 4 Processor 4 | . . . . . 4 6 1 . 2 . 5 5 5 5 9 5 5 16 17 Hackware 1 | . . . . . . . . . 1 . . . 1 5 5 2 10 4 4 Protection 10 | . 11 13 14 14 9 13 13 13 9 14 17 14 11 6 4 . . . . Energy Gun 4 | . 14 10 . . 3 . . . 3 8 11 5 . 2 . . . 6 3 Energy Cannon 2 | . 1 . . . 1 6 6 . 7 1 . . . 2 10 . . . 4 Ballistic Gun 11 | . 12 16 28 28 7 6 6 . 3 4 5 10 . 7 1 . . 6 5 Ballistic Cannon 1 | . . . . . 4 6 6 . 2 . . . . 2 3 . . . 2 Peak Build Rating 160 | 6 11 15 15 27 84 68 70 70 74 87 84 87 105 109 125 35 30 124 160 Average Rating 61 | 6 9 12 15 21 65 67 69 58 67 78 82 82 75 105 110 21 30 84 128 On Entrance 51 | 6 6 11 15 15 27 67 68 70 70 56 79 84 77 105 109 7 30 30 104 Naked Turns . | . . . . . . . . . . . . . . . . . . . . Heaviest Build 151 | 12 34 35 31 58 115 91 92 92 94 114 95 99 88 96 149 15 14 92 151 Greatest Support 160 | 20 40 40 40 40 56 56 56 56 60 75 75 75 116 116 116 14 14 50 160 Greatest Overweight (x) 15 | . 1 1 . 1 3 1 1 1 2 1 1 1 . . 1 2 . 6 15 Average Overweight (x) . | . . . . . 1 1 1 1 . 1 1 1 . . . . . . . Largest Inventory Capacity 25 | 8 15 15 15 20 20 20 20 20 20 20 20 20 20 20 25 5 5 15 20 Average Capacity 18 | 8 14 15 15 19 20 20 20 20 20 20 20 20 20 20 24 5 5 6 17 Most Carried 25 | 6 15 15 10 20 20 20 20 20 20 20 20 20 20 20 25 5 3 13 20 Average Carried 16 | 6 13 14 10 16 15 19 19 20 19 18 19 19 18 19 20 4 3 5 15 Final Capacity 20 | 8 15 15 15 20 20 20 20 20 20 20 20 20 20 20 5 5 5 15 20 Final Carried 20 | 6 15 10 10 20 20 20 20 20 12 19 19 18 20 20 5 3 3 13 10 Class Distribution -------------------- 36% | Mutant 26% | Scavenger-Tank 10% | Scavenger-Gunner 5% | Derelict-Tank 5% | Hacker-Gunner 5% | Tank 3% | Hacker-Mutant Dominant Class ---------------- Mutant | -10/Materials Mutant | -10/Subcaves Mutant | -9/Recycling Mutant | -9/Scraptown Derelict-Tank | -6/Factory Tank | -6/Lower Caves Scavenger-Tank | -6/Lower Caves Scavenger-Mutant | -6/Data Miner Scavenger-Tank | -5/Proximity Caves Scavenger-Tank | -5/Factory Scavenger-Tank | -5/Upper Caves Scavenger-Tank | -5/Upper Caves Scavenger-Mutant | -5/Zhirov Hacker-Tank | -4/Proximity Caves Hacker-Gunner | -4/Factory Mutant | -4/Armory Mutant | -4/Lab Scavenger-Gunner | -3/Research Scavenger-Gunner | -3/Testing Resources | -11 -10 -10 -9 -9 -6 -6 -6 -6 -5 -5 -5 -5 -5 -4 -4 -4 -4 -3 -3 ----------- Run | Yrd Mat Sub Rec Scr Fac Low Low Dat Pro Fac Upp Upp Zhi Pro Fac Arm Lab Res Tes Matter Collected 6329 | 200 143 289 . 192 300 179 349 . 628 178 164 307 . 406 421 136 . 835 1602 Remotely . | . . . . . . . . . . . . . . . . . . . . Salvage Created 11131 | . 399 685 . . 417 179 337 . 576 480 82 508 . 580 1900 206 . 1768 3014 Parts 481 | . 19 47 . . 20 6 13 . 32 26 1 13 . 28 66 16 . 75 119 Haulers Intercepted 5 | . 2 . . . . . . . . 1 . . . . . . . 1 1 Recyclers Shooed 3 | . . . . . 2 . . . . . . . . . 1 . . . . Parts Field Recycled . | . . . . . . . . . . . . . . . . . . . . Retrieved Matter . | . . . . . . . . . . . . . . . . . . . . Parts Self-Destructed 122 | . . 17 . . . 5 15 . 37 . 1 22 . 25 . . . . . Prevented 8 | . . . . . . . 1 . 6 . . 1 . . . . . . . Kills | -11 -10 -10 -9 -9 -6 -6 -6 -6 -5 -5 -5 -5 -5 -4 -4 -4 -4 -3 -3 ------- Run | Yrd Mat Sub Rec Scr Fac Low Low Dat Pro Fac Upp Upp Zhi Pro Fac Arm Lab Res Tes Combat Hostiles Destroyed 183 | . 9 18 . . 6 3 9 . 12 8 1 10 . 9 24 3 . 23 48 Melee 7 | . . . . . . . . . . . . . . . . 3 . 4 . Guns 95 | . 9 17 . . 3 . 2 . 5 6 1 10 . 5 1 . . 14 22 Cannons 63 | . . 1 . . 3 3 7 . 7 . . . . 4 13 . . 3 22 AOE 9 | . . . . . . . . . . 2 . . . . 5 . . . 2 Classes Destroyed 20 | . 3 2 . . 5 . . . 3 1 . . . . 3 2 . . 1 Worker 10 | . . . . . . . . . . . . . . . 2 . . 3 5 Builder 7 | . . . . . . . . . . 2 . . . . 1 . . . 4 Hauler 5 | . 2 . . . . . . . . 1 . . . . . . . 1 1 Recycler 6 | . . . . . 1 . . . . . . . . . 3 . . 1 1 Operator 2 | . . . . . 1 . . . . . . . . . . 1 . . . Watcher 1 | . . . . . . . . . . . . . . . 1 . . . . Swarmer 34 | . 3 4 . . . . 4 . 5 3 . 3 . . 8 . . 4 . Saboteur 2 | . . . . . . . . . . . . . . . . 1 . . 1 Grunt 65 | . 6 4 . . . 3 . . 1 2 . 5 . 7 9 . . . 28 Brawler 7 | . . . . . . . . . 2 . . . . . . . . . 5 Duelist 4 | . . . . . . . . . 1 . . 1 . . . . . . 2 Sentry 10 | . . . . . 1 . 1 . . 1 . 1 . 1 1 . . 4 . Specialist 2 | . . . . . . . . . . . . . . . . 2 . . . Hunter 20 | . . . . . 2 . . . 2 . . . . . 4 . . 8 4 Programmer 19 | . . . . . 3 . . . . 2 . . . . 1 . . 7 6 Heavy 1 | . . . . . . . . . . . . . . . 1 . . . . Behemoth 3 | . . . . . . . . . 1 . 1 . . 1 . . . . . Striker 2 | . . . . . . . . . . . . . . . . . . . 2 Artisan 1 | . . 1 . . . . . . . . . . . . . . . . . Subdweller 10 | . . 10 . . . . . . . . . . . . . . . . . Thug 4 | . . . . . . . 4 . . . . . . . . . . . . Best Kill Streak 8 | . 3 4 . . 2 3 4 . 5 4 1 3 . 3 6 1 . 7 8 Combat Bots Only 7 | . 3 4 . . 2 3 4 . 5 3 1 3 . 3 4 1 . 6 7 Max Kills in Single Turn 4 | . 1 1 . . 1 1 1 . 1 4 1 2 . 1 2 1 . 2 2 Gunslinging 1 | . . . . . . . . . . 1 . 1 . . . . . . . Exploded 2 | . . . . . . . . . . 2 . . . . 2 . . . 1 Melee 1 | . . . . . . . . . . . . . . . . 1 . 1 . Uniques/NPCs Destroyed . | . . . . . . . . . . . . . . . . . . . . Combat | -11 -10 -10 -9 -9 -6 -6 -6 -6 -5 -5 -5 -5 -5 -4 -4 -4 -4 -3 -3 -------- Run | Yrd Mat Sub Rec Scr Fac Low Low Dat Pro Fac Upp Upp Zhi Pro Fac Arm Lab Res Tes Hostile Shots Fired 2127 | . 50 172 . . 80 15 34 . 249 62 18 85 . 108 335 133 . 269 517 Missed 667 | . 18 43 . . 24 4 18 . 66 25 9 31 . 38 112 60 . 82 137 Damage Taken 20882 | . 305 1467 . . 591 58 52 . 3027 534 178 840 . 1291 3605 404 . 2513 6017 Core 3613 | . 51 188 . . 39 4 . . 757 42 53 60 . 68 721 319 . 344 967 Absorbed by Shields 1607 | . . . . . 18 66 82 . 396 . . . . . . . . 101 944 Reduced by Siege Mode 276 | . . . . . . . . . . . . . . . . . . . 276 Redirected to Shielding 314 | . . 53 . . . . . . . 7 . . . 68 186 . . . . Ignored by Resistances 6439 | . 96 418 . . 206 87 66 . 946 151 49 231 . 371 1024 146 . 721 1927 Regen/Repaired (Parts) 730 | . . . . . 44 . . . . 472 . . . . 214 . . . . Core Remaining (%) 38 | 100 . . . 4 . . . . 5 . . . . 77 . . 8 . . Volleys Fired 575 | . 32 94 . . 21 10 13 . 45 26 6 30 . 38 59 . . 72 129 Largest 4 | . 2 2 . . 4 1 3 . 3 3 3 3 . 3 4 . . 4 4 Hottest 358 | . 85 125 . . 160 85 166 . 235 219 210 210 . 180 358 . . 300 315 Shots Fired 1456 | . 64 187 . . 72 11 33 . 94 68 18 89 . 113 127 . . 199 381 Gun 1030 | . 64 184 . . 46 . 13 . 40 65 18 89 . 85 22 . . 184 220 Cannon 411 | . . 3 . . 26 11 20 . 52 2 . . . 28 93 . . 15 161 Launcher 15 | . . . . . . . . . 2 1 . . . . 12 . . . . Special . | . . . . . . . . . . . . . . . . . . . . Kinetic 735 | . 32 126 . . 51 . 26 . 39 25 6 52 . 81 33 . . 79 185 Thermal 613 | . 32 55 . . 4 11 7 . 47 42 12 37 . 32 62 . . 101 171 Explosive . | . . . . . . . . . . . . . . . . . . . . Electromagnetic 108 | . . 6 . . 17 . . . 8 1 . . . . 32 . . 19 25 Robot Hit Streak 50 | . 12 21 . . 15 11 9 . 39 50 6 16 . 19 30 . . 36 39 Robot Miss Streak 4 | . 2 2 . . 4 1 2 . 4 3 1 4 . 3 2 . . 3 2 Penetration Max 2 | . . . . . 1 . . . . . . 1 . 1 1 . . 2 2 Secondary Targets 10 | . 2 2 . . . . . . . 2 . 4 . . . . . . . Max Gunslinging Chain 2 | . 1 1 . . . . . . . 1 . 2 . . . . . . . Shots Hit Robots 1049 | . 47 114 . . 53 9 19 . 65 48 11 64 . 90 96 11 . 147 275 Core Hits 453 | . 17 33 . . 36 6 14 . 22 20 2 20 . 29 60 6 . 60 128 Critical Kills 16 | . 1 . . . . . . . . . . . . . . . . . 15 Critical Parts Destroyed 41 | . . 1 . . . . . . . . . 2 . 2 1 . . 2 33 Critical Strikes 91 | . 5 4 . . . . . . 2 . 1 4 . 6 1 2 . 10 56 Burn 18 | . 4 1 . . . . . . 1 . 1 2 . 2 . . . 7 . Destroy 65 | . 1 3 . . . . . . . . . 2 . 3 1 . . 2 53 Blast 5 | . . . . . . . . . 1 . . . . 1 . . . . 3 Corrupt 1 | . . . . . . . . . . . . . . . . . . 1 . Impale 2 | . . . . . . . . . . . . . . . . 2 . . . Melee Attacks 19 | . . . . . . . . . . . . . . . . 11 . 8 . Impact . | . . . . . . . . . . . . . . . . . . . . Slashing . | . . . . . . . . . . . . . . . . . . . . Piercing 19 | . . . . . . . . . . . . . . . . 11 . 8 . Sneak Attacks . | . . . . . . . . . . . . . . . . . . . . Combat Hostiles . | . . . . . . . . . . . . . . . . . . . . Follow-up Attacks . | . . . . . . . . . . . . . . . . . . . . Damage Inflicted 33060 | . 657 2132 . . 980 271 596 . 1881 1651 334 1743 . 2633 4163 456 . 4277 11286 Guns 17474 | . 657 2080 . . 605 . 159 . 624 1243 334 1743 . 1755 318 . . 3504 4452 Cannons 11244 | . . 52 . . 375 271 437 . 1002 66 . . . 720 2606 . . 443 5272 Explosions 3481 | . . . . . . . . . 255 342 . . . 158 1164 . . . 1562 Melee 786 | . . . . . . . . . . . . . . . . 456 . 330 . Ramming 75 | . . . . . . . . . . . . . . . 75 . . . . Kinetic 11865 | . 290 1315 . . 680 . 444 . 573 410 79 1088 . 1733 524 . . 1153 3576 Thermal 17062 | . 367 714 . . 63 271 152 . 912 1241 255 655 . 900 1934 . . 2413 7185 Explosive 182 | . . . . . . . . . . . . . . . 182 . . . . Electromagnetic 3090 | . . 103 . . 237 . . . 396 . . . . . 1448 . . 381 525 Impact . | . . . . . . . . . . . . . . . . . . . . Slashing . | . . . . . . . . . . . . . . . . . . . . Piercing 786 | . . . . . . . . . . . . . . . . 456 . 330 . Highest Corruption 41 | . . 1 1 . 15 15 15 15 32 . . . . . 18 18 14 7 41 Average Corruption 12 | . . 1 1 . 10 15 15 15 16 . . . . . 13 17 14 4 18 Corruption Purged 4 | . . . . . . . . . . . . . . . . 4 . . . Corruption Blocked . | . . . . . . . . . . . . . . . . . . . . Effects 301 | . . 8 2 . 36 18 40 4 76 . . . . . 3 13 1 4 96 Message Errors 67 | . . 3 . . 9 6 5 . 17 . . . . . 1 6 1 2 17 Matter Fused 70 | . . 3 1 . 7 2 13 . 17 . . . . . 1 2 . 1 23 Heat Flow Errors 28 | . . . 1 . 4 1 4 1 8 . . . . . 1 . . . 8 Energy Discharges 27 | . . 1 . . 2 1 5 . 11 . . . . . . . . . 7 Parts Rejected 6 | . . 1 . . 1 . . . 1 . . . . . . . . . 3 Parts Fused 2 | . . . . . . . 1 . . . . . . . . . . . 1 Data Loss (minor) 34 | . . . . . 5 5 5 2 7 . . . . . . 3 . . 7 Data Loss (major) 20 | . . . . . 2 1 3 1 4 . . . . . . 1 . 1 7 Misfires 11 | . . . . . 1 1 1 . 5 . . . . . . . . . 3 Alerts 6 | . . . . . 2 1 . . 1 . . . . . . 1 . . 1 Misdirections 6 | . . . . . 3 . 1 . . . . . . . . . . . 2 Weapon Failures 24 | . . . . . . . 2 . 5 . . . . . . . . . 17 Overload Shots 2 | . . . . . . . . . . . . . . . . . . . 2 Overflow Damage 480 | . . . . . . 3 . . 33 50 . . . 51 98 . . 52 193 Projectiles 309 | . . . . . . 3 . . 33 . . . . 20 84 . . 34 135 Explosions 140 | . . . . . . . . . . 50 . . . 31 1 . . . 58 Melee 31 | . . . . . . . . . . . . . . . 13 . . 18 . Knockbacks 32 | . . . . . 7 . . . 2 . . . . 8 1 . . . 14 Impact . | . . . . . . . . . . . . . . . . . . . . Kinetic 32 | . . . . . 7 . . . 2 . . . . 8 1 . . . 14 Secondary . | . . . . . . . . . . . . . . . . . . . . Self-Inflicted Damage 314 | . . . . . 70 . . . 9 . . . . . 123 . . . 112 Shots 18 | . . . . . 4 . . . 1 . . . . . 11 . . . 2 Rammed . | . . . . . . . . . . . . . . . . . . . . Targets Rammed 7 | . . . . . . . . . . . . . . . 7 . . . . Kicked 7 | . . . . . . . . . . . . . . . 7 . . . . Crushed . | . . . . . . . . . . . . . . . . . . . . Highest Temperature 565 | . 248 36 141 . 536 219 565 78 237 75 18 183 . . 198 . . 462 399 Average Temperature 119 | . 79 8 74 . 182 99 303 59 65 34 10 74 . . 115 . . 142 95 Received Heat Transfer 3465 | . 117 390 . . . 34 29 . 624 84 24 336 . 265 421 . . 132 1009 Effects 21 | . . . . . 5 . 3 . . . . . . . . . . 11 2 Shutdowns 5 | . . . . . 3 . . . . . . . . . . . . 2 . Energy Bleed 3 | . . . . . 1 . 1 . . . . . . . . . . . 1 Interference 10 | . . . . . . . 1 . . . . . . . . . . 8 1 Matter Decay 2 | . . . . . 1 . 1 . . . . . . . . . . . . Short Circuit 1 | . . . . . . . . . . . . . . . . . . 1 . Siege Activations 1 | . . . . . . . . . . . . . . . . . . . 1 Total Turns 64 | . . . . . . . . . . . . . . . . . . . 64 Longest Duration 64 | . . . . . . . . . . . . . . . . . . . 64 Robots Corrupted 6 | . . . . . . . . . . . . . . . 5 . . 1 . Combat Hostiles 6 | . . . . . . . . . . . . . . . 5 . . 1 . Parts Fried 21 | . . . . . 2 . . . . . . 1 . . 15 . . 2 1 Impact Corruptions 1 | . . . . . . . . . . . . . . . 1 . . . . Robots Melted 3 | . . . . . . . . . . . . . . . . . . 1 2 Combat Hostiles 3 | . . . . . . . . . . . . . . . . . . 1 2 Parts Melted 29 | . 2 1 . . . . . . 3 1 2 3 . . 1 . . 16 . Heat Transferred 16644 | . 1221 1423 . . 74 333 185 . 1332 1471 407 1110 . 803 1345 . . 3515 3425 Parts Sabotaged 7 | . . . . . . . . . 2 . . . . . . . . . 5 Parts Stolen . | . . . . . . . . . . . . . . . . . . . . Parts Stripped . | . . . . . . . . . . . . . . . . . . . . Power Chain Reactions 12 | . . . . . 2 . . . . . . . . 1 4 . . . 5 Alert | -11 -10 -10 -9 -9 -6 -6 -6 -6 -5 -5 -5 -5 -5 -4 -4 -4 -4 -3 -3 ------- Run | Yrd Mat Sub Rec Scr Fac Low Low Dat Pro Fac Upp Upp Zhi Pro Fac Arm Lab Res Tes Peak Influence 1046 | . 200 . 74 . 195 . . . . 322 . . . . 373 239 . 389 1046 Initial 130 | . . . 74 . . . . . . . . . . . 22 130 . . 92 Average 185 | . 82 . 74 . 58 . . . . 95 . . . . 138 203 . 195 432 Maximum Alert Level 3 | . 1 . . . . . . . . 1 . . . . 1 1 . 1 3 Low Security (%) 66 | 100 93 . 100 . 100 . . . . 81 . . . . 65 40 . 54 23 Level 1 22 | . 6 . . . . . . . . 18 . . . . 34 59 . 45 25 Level 2 7 | . . . . . . . . . . . . . . . . . . . 32 Level 3 4 | . . . . . . . . . . . . . . . . . . . 18 Level 4 . | . . . . . . . . . . . . . . . . . . . . Level 5 . | . . . . . . . . . . . . . . . . . . . . High Security . | . . . . . . . . . . . . . . . . . . . . Max Security . | . . . . . . . . . . . . . . . . . . . . Squads Dispatched 37 | . 1 . . . 4 . . . 1 3 . . . . 6 1 . 5 16 Investigation 5 | . 1 . . . 2 . . . . . . . . . 1 . . 1 . Extermination 12 | . . . . . 2 . . . . 1 . . . . 3 1 . 2 3 Reinforcement 10 | . . . . . . . . . . 2 . . . . 2 . . 2 4 Assault 6 | . . . . . . . . . 1 . . . . . . . . . 5 Garrison 1 | . . . . . . . . . . . . . . . . . . . 1 Intercept 3 | . . . . . . . . . . . . . . . . . . . 3 Searches Triggered . | . . . . . . . . . . . . . . . . . . . . Data Miner Redirects 5 | . . . . . . . . . . . . . . . . . . 1 4 Construction Impeded 6 | . . . . . . . . . . 1 . . . . 1 . . 1 3 Haulers Reinforced 3 | . . . . . . . . . . 1 . . . . . . . 1 1 Active Scanning Responses . | . . . . . . . . . . . . . . . . . . . . Cargo Convoy Interrupts . | . . . . . . . . . . . . . . . . . . . . Stealth | -11 -10 -10 -9 -9 -6 -6 -6 -6 -5 -5 -5 -5 -5 -4 -4 -4 -4 -3 -3 --------- Run | Yrd Mat Sub Rec Scr Fac Low Low Dat Pro Fac Upp Upp Zhi Pro Fac Arm Lab Res Tes Distress Signals 6 | . . . . . . . . . . . . . . . 3 . . . 3 Communications Jammed 25 | . . . . . . . . . . . . . . . 25 . . . . Distress Signals 19 | . . . . . . . . . . . . . . . 19 . . . . Times Spotted 291 | . 17 27 . . 17 3 9 . 22 18 1 15 . 11 50 4 . 26 71 Peak Tracking Total 13 | . 5 5 . . 5 3 4 . 11 4 1 4 . 4 13 2 . 7 10 Tactical Retreats 15 | . . 2 . . . . . . 1 . . 2 . 2 2 . . 2 4 Traps | -11 -10 -10 -9 -9 -6 -6 -6 -6 -5 -5 -5 -5 -5 -4 -4 -4 -4 -3 -3 ------- Run | Yrd Mat Sub Rec Scr Fac Low Low Dat Pro Fac Upp Upp Zhi Pro Fac Arm Lab Res Tes Traps Triggered 13 | . 4 2 . . 3 . . . . 3 . . . . 1 . . . . Indirectly 3 | . . . . . . . . . . 3 . . . . . . . . . Trap Hack Attempts . | . . . . . . . . . . . . . . . . . . . . Triggered . | . . . . . . . . . . . . . . . . . . . . Disarmed 1 | . 1 . . . . . . . . . . . . . . . . . . Reprogrammed . | . . . . . . . . . . . . . . . . . . . . Reused . | . . . . . . . . . . . . . . . . . . . . Traps Extracted . | . . . . . . . . . . . . . . . . . . . . Installed . | . . . . . . . . . . . . . . . . . . . . Triggered 3 | . . . . . . . 2 . . . . 1 . . . . . . . Machines | -11 -10 -10 -9 -9 -6 -6 -6 -6 -5 -5 -5 -5 -5 -4 -4 -4 -4 -3 -3 ---------- Run | Yrd Mat Sub Rec Scr Fac Low Low Dat Pro Fac Upp Upp Zhi Pro Fac Arm Lab Res Tes Machines Disabled 46 | . . 2 . . 7 . . . 1 9 . . . . 17 . . . 10 Max in Single Turn 4 | . . 1 . . 4 . . . 1 4 . . . . 4 . . . 1 Garrison Access 1 | . . . . . . . . . . . . . . . . . . . 1 Machines Repaired . | . . . . . . . . . . . . . . . . . . . . Machines Dismantled . | . . . . . . . . . . . . . . . . . . . . Machines Sabotaged . | . . . . . . . . . . . . . . . . . . . . Overloaded Fab Kills . | . . . . . . . . . . . . . . . . . . . . Hacking | -11 -10 -10 -9 -9 -6 -6 -6 -6 -5 -5 -5 -5 -5 -4 -4 -4 -4 -3 -3 --------- Run | Yrd Mat Sub Rec Scr Fac Low Low Dat Pro Fac Upp Upp Zhi Pro Fac Arm Lab Res Tes Machines Accessed 51 | . 11 1 . 1 7 1 . 4 . 2 . . 2 . 6 4 . 5 7 Terminals 29 | . 8 . . . 4 1 . . . 1 . . . . 3 3 . 3 6 Fabricators 3 | . . . . . 1 . . . . . . . . . 1 1 . . . Repair Stations 5 | . 1 . . . 1 . . . . 1 . . . . 1 . . 1 . Recycling Units 3 | . 2 . . . . . . . . . . . . . 1 . . . . Scanalyzers 3 | . . . . . 1 . . . . . . . . . . . . 1 1 Garrison Access . | . . . . . . . . . . . . . . . . . . . . Total Hacks 164 | . 36 1 . 1 20 2 . 31 . 3 . . 9 . 19 10 . 16 16 Successful 108 | . 22 1 . 1 10 2 . 31 . 2 . . 9 . 11 4 . 9 6 Failed 56 | . 14 . . . 10 . . . . 1 . . . . 8 6 . 7 10 Catastrophic 11 | . 1 . . . 1 . . . . 1 . . . . 3 1 . 1 3 Database Lockouts . | . . . . . . . . . . . . . . . . . . . . Manual 56 | . 24 . . . 2 . . . . 1 . . . . 5 6 1 9 8 Terminals 91 | . 32 . . . 11 2 . . . 1 . . . . 10 9 . 12 14 Fabricators 5 | . . . . . 2 . . . . . . . . . 2 1 . . . Repair Stations 14 | . 1 . . . 3 . . . . 2 . . . . 6 . . 2 . Recycling Units 4 | . 3 . . . . . . . . . . . . . 1 . . . . Scanalyzers 8 | . . . . . 4 . . . . . . . . . . . . 2 2 Garrison Access . | . . . . . . . . . . . . . . . . . . . . Terminal Hacks 71 | . 12 1 . 1 5 2 . 31 . . . . 9 . 4 1 . 2 3 Record 19 | . . . . . . 2 . 11 . . . . 5 . . . . . 1 Part Schematic 12 | . 1 . . . . . . 11 . . . . . . . . . . . Robot Schematic 6 | . . . . . . . . 6 . . . . . . . . . . . Robot Analysis 6 | . 1 . . . 1 . . . . . . . 4 . . . . . . Prototype ID Bank 7 | . 3 . . . 1 . . 3 . . . . . . . . . . . Level Access Points 1 | . . . . . . . . . . . . . . . . . . . 1 Branch Access Points 2 | . 1 . . . 1 . . . . . . . . . . . . . . Terminal Index 2 | . . . . . 1 . . . . . . . . . . . . 1 . Fabricator Index 1 | . . . . . . . . . . . . . . . 1 . . . . Recycling Unit Index 1 | . 1 . . . . . . . . . . . . . . . . . . Unreport Threat 2 | . . . . . . . . . . . . . . . 2 . . . . Locate Traps 2 | . 1 . . . . . . . . . . . . . . 1 . . . Disarm Traps 1 | . 1 . . . . . . . . . . . . . . . . . . Patrol Status 1 | . . . . . . . . . . . . . . . . . . 1 . Recall Reinforcements 1 | . . . . . . . . . . . . . . . 1 . . . . Hauler Manifests 1 | . 1 . . . . . . . . . . . . . . . . . . Zone Layout 3 | . 2 . . . 1 . . . . . . . . . . . . . . Derelict Proto ID Bank 2 | . . 1 . 1 . . . . . . . . . . . . . . . Protovariant Controls 1 | . . . . . . . . . . . . . . . . . . . 1 Fabricator Hacks 1 | . . . . . . . . . . . . . . . 1 . . . . Load Schematic 1 | . . . . . . . . . . . . . . . 1 . . . . Repair Station Hacks 10 | . . . . . 2 . . . . 2 . . . . 5 . . 1 . Scan Component 5 | . . . . . 1 . . . . 1 . . . . 3 . . . . Repair 4 | . . . . . 1 . . . . 1 . . . . 2 . . . . Refit 1 | . . . . . . . . . . . . . . . . . . 1 . Recycling Unit Hacks 1 | . 1 . . . . . . . . . . . . . . . . . . Retrieve Components 1 | . 1 . . . . . . . . . . . . . . . . . . Scanalyzer 5 | . . . . . 3 . . . . . . . . . . . . 2 . Insert Component 2 | . . . . . 1 . . . . . . . . . . . . 1 . Analyze 3 | . . . . . 2 . . . . . . . . . . . . 1 . Garrison Access Hacks . | . . . . . . . . . . . . . . . . . . . . Unauthorized Hacks 20 | . 9 . . . . . . . . . . . . . 1 3 . 4 3 Terminals 18 | . 8 . . . . . . . . . . . . . . 3 . 4 3 Botnet 10 | . 3 . . . . . . . . . . . . . . 2 . 2 3 Skim 8 | . 5 . . . . . . . . . . . . . . 1 . 2 . Fabricators . | . . . . . . . . . . . . . . . . . . . . Repair Stations 2 | . 1 . . . . . . . . . . . . . 1 . . . . Mechanics 1 | . 1 . . . . . . . . . . . . . . . . . . Recycling Units . | . . . . . . . . . . . . . . . . . . . . Scrapoids 1 | . . . . . . . . . . . . . . . 1 . . . . Scanalyzers . | . . . . . . . . . . . . . . . . . . . . Garrison Access . | . . . . . . . . . . . . . . . . . . . . Data Cores Recovered 2 | . . . . . 1 . . . . . . . . . . 1 . . . Used . | . . . . . . . . . . . . . . . . . . . . Hacking Detections 39 | . 10 . . . 6 . . . . 2 . . . . 5 4 . 5 7 Full Trace Events 3 | . . . . . 2 . . . . . . . . . . . . 1 . Feedback Events . | . . . . . . . . . . . . . . . . . . . . Feedback Blocked . | . . . . . . . . . . . . . . . . . . . . Robot Schematics Acquired 6 | . . . . . . . . 6 . . . . . . . . . . . Robots Built . | . . . . . . . . . . . . . . . . . . . . Authchips . | . . . . . . . . . . . . . . . . . . . . Time . | . . . . . . . . . . . . . . . . . . . . Total Robot Build Rating . | . . . . . . . . . . . . . . . . . . . . Part Schematics Acquired 14 | . 1 . . . 1 . . 11 . . . . . . . . . 1 . Parts Built . | . . . . . . . . . . . . . . . . . . . . Authchips . | . . . . . . . . . . . . . . . . . . . . Time . | . . . . . . . . . . . . . . . . . . . . Total Part Build Rating . | . . . . . . . . . . . . . . . . . . . . Parts Repaired 4 | . . . . . 1 . . . . 1 . . . . 2 . . . . Time 213 | . . . . . 22 . . . . 13 . . . . 178 . . . . Parts Recycled . | . . . . . . . . . . . . . . . . . . . . Recycled Matter . | . . . . . . . . . . . . . . . . . . . . Retrieved Matter . | . . . . . . . . . . . . . . . . . . . . Retrieved Components 9 | . 9 . . . . . . . . . . . . . . . . . . Parts Scanalyzed 2 | . . . . . 1 . . . . . . . . . . . . 1 . Part Schematics Acquired 2 | . . . . . 1 . . . . . . . . . . . . 1 . Parts Damaged . | . . . . . . . . . . . . . . . . . . . . Bothacking | -11 -10 -10 -9 -9 -6 -6 -6 -6 -5 -5 -5 -5 -5 -4 -4 -4 -4 -3 -3 ------------ Run | Yrd Mat Sub Rec Scr Fac Low Low Dat Pro Fac Upp Upp Zhi Pro Fac Arm Lab Res Tes Used RIF Installer . | . . . . . . . . . . . . . . . . . . . . Robots Hacked . | . . . . . . . . . . . . . . . . . . . . Non-combat . | . . . . . . . . . . . . . . . . . . . . Combat . | . . . . . . . . . . . . . . . . . . . . Robot Hacks Applied . | . . . . . . . . . . . . . . . . . . . . Relay Couplers Released 2 | . . . . . . . . . . . . . . . . . . . 2 Machine Destruction 2 | . . . . . . . . . . . . . . . . . . . 2 Fabnet Peak Effective % . | . . . . . . . . . . . . . . . . . . . . Robots Rewired 2 | . . . . . . . . . 2 . . . . . . . . . . Allies Hacked 1 | . . . . . . . . . . . . . . . 1 . . . . Hacks Repelled . | . . . . . . . . . . . . . . . . . . . . Allies | -11 -10 -10 -9 -9 -6 -6 -6 -6 -5 -5 -5 -5 -5 -4 -4 -4 -4 -3 -3 -------- Run | Yrd Mat Sub Rec Scr Fac Low Low Dat Pro Fac Upp Upp Zhi Pro Fac Arm Lab Res Tes Total Allies 8 | . . . . . . . . . 3 . . . . . 5 . . . . Largest Group 5 | . . . . . . . . . 3 3 1 1 . . 5 . . . . Highest-Rated Group 235 | . . . . . . . . . 154 154 96 96 . . 235 . . . . Highest-Rated Ally 96 | . . . . . . . . . 96 96 96 96 . . 47 . . . . Total Orders . | . . . . . . . . . . . . . . . . . . . . Ally Attacks 97 | . . . . . . . . . 15 34 5 8 . . 35 . . . . Total Damage 4071 | . . . . . . . . . 862 1164 154 284 . . 1607 . . . . Kills 28 | . . . . . . . . . 3 8 . 2 . . 15 . . . . Allies Corrupted . | . . . . . . . . . . . . . . . . . . . . Allies Melted . | . . . . . . . . . . . . . . . . . . . . Intel | -11 -10 -10 -9 -9 -6 -6 -6 -6 -5 -5 -5 -5 -5 -4 -4 -4 -4 -3 -3 ------- Run | Yrd Mat Sub Rec Scr Fac Low Low Dat Pro Fac Upp Upp Zhi Pro Fac Arm Lab Res Tes Robot Analysis Total 6 | . 1 . . . 1 . . . . . . . 4 . . . . . . Derelict Logs Recovered 10 | . . 1 . 1 . 1 2 . 2 . 1 2 . . . . . . . Drone Launches . | . . . . . . . . . . . . . . . . . . . . Drone Recoveries . | . . . . . . . . . . . . . . . . . . . . Exploration | -11 -10 -10 -9 -9 -6 -6 -6 -6 -5 -5 -5 -5 -5 -4 -4 -4 -4 -3 -3 ------------- Run | Yrd Mat Sub Rec Scr Fac Low Low Dat Pro Fac Upp Upp Zhi Pro Fac Arm Lab Res Tes Turns Passed 17964 | 3 1156 1802 142 3166 1307 425 904 191 1635 807 563 863 231 502 1424 273 18 830 1722 Spaces Moved 8375 | 3 592 901 85 1615 484 211 444 98 723 329 272 387 167 306 543 173 19 419 604 Core 109 | . . . . . . . . . . . . . . . 24 84 . . 1 Treads 2406 | . 236 901 85 719 . . . . . . . . . . . . . . 465 Legs 5408 | 3 356 . . 896 484 211 444 98 723 329 272 387 167 306 519 . . 75 138 Wheels . | . . . . . . . . . . . . . . . . . . . . Hover 338 | . . . . . . . . . . . . . . . . 22 19 297 . Flight 114 | . . . . . . . . . . . . . . . . 67 . 47 . Fastest Speed 31 | 120 120 160 160 160 190 190 190 190 130 197 197 196 120 120 50 32 56 31 120 Average Speed 176 | 120 173 160 160 193 223 190 190 190 190 197 197 196 123 120 179 81 56 114 172 Slowest Speed 800 | 120 190 240 160 240 330 190 190 190 270 197 197 197 125 120 190 180 56 560 800 Overloaded Moves . | . . . . . . . . . . . . . . . . . . . . Propulsion Burnouts . | . . . . . . . . . . . . . . . . . . . . Robots Hopped . | . . . . . . . . . . . . . . . . . . . . Cave-ins Triggered . | . . . . . . . . . . . . . . . . . . . . Teleports 1 | . . . . . . . . . . . . . . . . 1 . . . Exploration Rate (%) 43 | 2 86 52 15 92 10 37 65 68 74 12 45 68 62 60 21 15 25 11 48 Regions Visited 19 Branch Regions 14 Pre-discovered Areas 5 | . 1 . . . . . . 1 . . . . 3 . . . . . . Known Exits Taken 12 | . 1 . 1 . 1 . . . . 1 1 1 1 1 1 1 1 1 . Unknown Exits Taken 7 | 1 . 1 . 1 . 1 1 1 1 . . . . . . . . . . Scrap Searched 29 | . . 13 . 6 . . 3 . 3 . 1 1 . 2 . . . . . Spaces Dug 1 | . . . . . . . 1 . . . . . . . . . . . . Terrain Destroyed 226 | . . . . . 7 2 5 . 19 24 2 12 . 15 25 . . 5 110 Melee . | . . . . . . . . . . . . . . . . . . . . Projectile 118 | . . . . . 2 2 5 . 19 6 2 12 . 13 8 . . 5 44 AOE 102 | . . . . . 5 . . . . 18 . . . 2 17 . . . 60 Terrain Rammed . | . . . . . . . . . . . . . . . . . . . . Walls Destroyed . | . . . . . . . . . . . . . . . . . . . . Machines Disabled . | . . . . . . . . . . . . . . . . . . . . Actions | -11 -10 -10 -9 -9 -6 -6 -6 -6 -5 -5 -5 -5 -5 -4 -4 -4 -4 -3 -3 --------- Run | Yrd Mat Sub Rec Scr Fac Low Low Dat Pro Fac Upp Upp Zhi Pro Fac Arm Lab Res Tes Total 10331 | 2 657 1075 91 1655 652 227 479 103 897 434 287 430 191 356 885 276 25 598 1011 Wait 788 | . 1 43 7 5 95 3 14 . 80 42 6 . . 1 226 74 7 18 166 Move 8356 | 2 591 900 84 1614 483 210 443 97 722 328 271 386 166 305 542 172 18 418 604 Hop . | . . . . . . . . . . . . . . . . . . . . Pick Up 127 | . 14 9 . 19 12 1 3 . 2 12 2 2 4 5 12 . . 16 14 Fast Attach 151 | . 3 6 . 2 16 . 1 3 12 8 . 1 10 2 5 12 . 41 29 Attach 89 | . 2 8 . 1 9 . . . 12 3 2 2 1 5 15 2 . 4 23 Detach 17 | . . . . . 1 . . . 2 2 . . . . 1 . . . 11 Swap 48 | . 4 2 . 2 2 1 1 . 7 7 . 4 1 . 6 . . 2 9 Drop 139 | . 10 13 . 12 8 2 4 3 6 5 . 5 9 . 12 5 . 19 26 Fire 575 | . 32 94 . . 21 10 13 . 45 26 6 30 . 38 59 . . 72 129 Melee 19 | . . . . . . . . . . . . . . . . 11 . 8 . Ram . | . . . . . . . . . . . . . . . . . . . . Kick 7 | . . . . . . . . . . . . . . . 7 . . . . Crush . | . . . . . . . . . . . . . . . . . . . . Escape Stasis 5 | . . . . . 5 . . . . . . . . . . . . . . Rewire 9 | . . . . . . . . . 9 . . . . . . . . . . Trap . | . . . . . . . . . . . . . . . . . . . . Miscellaneous 1 | . . . . . . . . . . 1 . . . . . . . . . Route ------- -11/Scrapyard -10/Materials (discovered 5 exits: *Mat x3 / *Min / *Sub) -10/Subcaves -9/Recycling -9/Scraptown (discovered 2 exits: *Fac x2) -6/Factory (discovered 2 exits: *Low x2) -6/Lower Caves -6/Lower Caves -6/Data Miner -5/Proximity Caves -5/Factory -5/Upper Caves -5/Upper Caves -5/Zhirov -4/Proximity Caves -4/Factory (discovered 2 exits: *Res / *Arm) -4/Armory -4/Lab -3/Research (discovered 2 exits: *Res / *Tes) -3/Testing (discovered 1 exit: Res) History --------- Turn | Location | Event 1 | -11/Scrapyard | Discovered new exit (range 0) 4 | -11/Scrapyard | Entered Materials 317 | -10/Materials | Build established: Mutant 617 | -10/Materials | Learned 2 Mines zone layouts 657 | -10/Materials | Learned location of Subcaves (-10) 687 | -10/Materials | Learned location of 1 exit from Recycling 704 | -10/Materials | Discovered new exit (range 14) 708 | -10/Materials | Identified exit to Materials 717 | -10/Materials | Identified exit to Subcaves 734 | -10/Materials | Identified exit to Mines 762 | -10/Materials | Learned location of 3 exits from Materials 1160 | -10/Materials | Entered Subcaves 1356 | -10/Subcaves | Learned Materials interactive machine intel 1531 | -10/Subcaves | Lost 4 parts (1p1n1u1w) 1702 | -10/Subcaves | Visited 4L-MR0's lab 1741 | -10/Subcaves | Found Prototype Protection 1751 | -10/Subcaves | Identified Tower Shield 1965 | -10/Subcaves | Disturbed a concealed Subdweller 2430 | -10/Subcaves | Core integrity fell below 50% 2610 | -10/Subcaves | A swath of the cavern ceiling suddenly collapsed 2813 | -10/Subcaves | Lost 4 parts (1p2n1u) 2887 | -10/Subcaves | Discovered new exit (range 16) 2896 | -10/Subcaves | Core integrity fell below 20% 2962 | -10/Subcaves | Entered Recycling 2963 | -9/Recycling | Identified exit to Scraptown 3061 | -9/Recycling | Scanned before Scraplab entrance 3085 | -9/Recycling | Entered Scraplab 3104 | -9/Recycling | Entered Scraptown 3104 | -9/Scraptown | System corruption cleaned by C-Scrubber 3480 | -9/Scraptown | Heard Great Nut preacher, LISTEN AND RECITE! 3536 | -9/Scraptown | Discovered new exit (range 7) 3624 | -9/Scraptown | Scanned Subdweller tech in exchange for log data 4667 | -9/Scraptown | Visited Symbiants 4709 | -9/Scraptown | Visited CPS Storage 4757 | -9/Scraptown | Visited Science Testing Area 4778 | -9/Scraptown | Visited Shadow of the Wyrm 4837 | -9/Scraptown | Visited Comm Corps 4878 | -9/Scraptown | Visited Cyclists 4945 | -9/Scraptown | Visited UFD Registry 4945 | -9/Scraptown | Registered with UFD as "Arcwarp" 5025 | -9/Scraptown | Entered Cyclist Reading Room 5361 | -9/Scraptown | Visited Observation Area 5442 | -9/Scraptown | Visited Derelict Rescue Squad 5499 | -9/Scraptown | Visited DA-N13 Charitable Foundation 5514 | -9/Scraptown | Found DCF Scrap (30 items) 5572 | -9/Scraptown | Visited Scrap Suit Storage 5600 | -9/Scraptown | Visited Research Penetration Think Tank 5642 | -9/Scraptown | Visited Supply Room 5708 | -9/Scraptown | Visited Scrapoid Research Area 5799 | -9/Scraptown | Visited Curators Association 5881 | -9/Scraptown | Visited Chapter 10 5923 | -9/Scraptown | Visited Science Guys 6267 | -9/Scraptown | Discovered new exit (range 3) 6270 | -9/Scraptown | Entered Factory 6270 | -6/Factory | Evolved 8 slots: Power x1, Propulsion x1, Utility x5, Weapon x1 6271 | -6/Factory | Identified exit to Lower Caves 6401 | -6/Factory | Attached Tower Shield, gained temporary slots: Power, Propulsion x2, Utility x2, Weapon x2 6604 | -6/Factory | Build established: Derelict-Tank 6885 | -6/Factory | System corruption reached 10% 7435 | -6/Factory | Repaired Mic. Nuclear Core 7577 | -6/Factory | Entered Lower Caves 7601 | -6/Lower Caves | Encountered a Warlord checkpoint 7801 | -6/Lower Caves | Build established: Tank 7838 | -6/Lower Caves | Learned Factory security intel 7972 | -6/Lower Caves | Discovered new exit (range 15) 8002 | -6/Lower Caves | Entered another Lower Caves area 8122 | -6/Lower Caves | Learned Factory garrison access intel 8156 | -6/Lower Caves | Ambushed by wild Derelicts 8310 | -6/Lower Caves | Attracted the attention of an 0b10 checkpoint 8464 | -6/Lower Caves | Learned Factory interactive machine intel 8493 | -6/Lower Caves | Build established: Scavenger-Tank 8894 | -6/Lower Caves | Discovered new exit (range 7) 8906 | -6/Lower Caves | Entered Data Miner 8908 | -6/Data Miner | Discovered new exit (range 6) 8944 | -6/Data Miner | Met Data Miner 8990 | -6/Data Miner | Learned location of Section 7 (-2) 8990 | -6/Data Miner | Acquired the access code to Warlord's prototype stash 9020 | -6/Data Miner | Received God Mode back door access code from Data Miner 9097 | -6/Data Miner | Entered Proximity Caves 9831 | -5/Proximity Caves | Spotted B-75 Beast 9873 | -5/Proximity Caves | Destroyed B-75 Beast 9967 | -5/Proximity Caves | Learned Factory emergency access door positions 10012 | -5/Proximity Caves | Learned Factory stockpile data 10524 | -5/Proximity Caves | Attracted the attention of an 0b10 outpost 10565 | -5/Proximity Caves | Core integrity fell below 50% 10572 | -5/Proximity Caves | Escorted by Enhanced Grunt 10577 | -5/Proximity Caves | Core integrity fell below 20% 10623 | -5/Proximity Caves | Lost 17 parts (3p3n6u5w) 10623 | -5/Proximity Caves | System corruption reached 30% 10691 | -5/Proximity Caves | Discovered new exit (range 14) 10732 | -5/Proximity Caves | Entered Factory 10732 | -5/Factory | Accompanied by 3 allies 10732 | -5/Factory | Evolved 2 slots: Propulsion x1, Utility x1 10736 | -5/Factory | Loaded intel: 52 interactive machine locations 10737 | -5/Factory | Loaded intel: 4 garrison access locations 10923 | -5/Factory | Repaired Hcp. Storage Unit 11478 | -5/Factory | Discovered new exit (range 15) 11524 | -5/Factory | Identified exit to Upper Caves 11539 | -5/Factory | Entered Upper Caves 11539 | -5/Upper Caves | Accompanied by 1 ally 11597 | -5/Upper Caves | Learned Factory interactive machine intel 11703 | -5/Upper Caves | Spotted B-75 Beast 11719 | -5/Upper Caves | Destroyed B-75 Beast 12086 | -5/Upper Caves | Discovered new exit (range 5) 12092 | -5/Upper Caves | Identified exit to Upper Caves 12102 | -5/Upper Caves | Entered another Upper Caves area 12102 | -5/Upper Caves | Accompanied by 1 ally 12593 | -5/Upper Caves | Learned Factory non-interactive machine intel 12639 | -5/Upper Caves | Attracted the attention of an 0b10 checkpoint 12683 | -5/Upper Caves | Lost 3 parts (1n2u) 12893 | -5/Upper Caves | Discovered new exit (range 8) 12963 | -5/Upper Caves | Identified exit to Zhirov 12965 | -5/Upper Caves | Entered Zhirov 12969 | -5/Zhirov | Discovered new exit (range 3) 13034 | -5/Zhirov | Learned location of Quarantine (-2) 13034 | -5/Zhirov | Learned location of Testing (-3) 13034 | -5/Zhirov | Learned location of Command (-1) 13062 | -5/Zhirov | Found Alien Artifact 13062 | -5/Zhirov | Identified Integrated Dissipator 13062 | -5/Zhirov | Installed Integrated Dissipator, increased core heat dissipation (+20) 13077 | -5/Zhirov | Found Alien Artifact 13193 | -5/Zhirov | Identified exit to Proximity Caves 13196 | -5/Zhirov | Entered Proximity Caves 13304 | -4/Proximity Caves | Spotted B-86 Titan 13360 | -4/Proximity Caves | Destroyed B-86 Titan 13371 | -4/Proximity Caves | Lost 4 parts (2p1u1w) 13578 | -4/Proximity Caves | Attracted the attention of an 0b10 checkpoint 13676 | -4/Proximity Caves | Discovered new exit (range 12) 13688 | -4/Proximity Caves | Identified exit to Factory 13698 | -4/Proximity Caves | Entered Factory 13698 | -4/Factory | Evolved 2 slots: Utility x1, Weapon x1 13699 | -4/Factory | Identified exit to Armory 13700 | -4/Factory | Loaded intel: 195 non-interactive machine locations 13701 | -4/Factory | Loaded intel: 53 interactive machine locations 13835 | -4/Factory | Repaired Enh. Flexi-carbon Leg 13926 | -4/Factory | Repaired Enh. Fission Core 14005 | -4/Factory | Build established: Hacker-Gunner 14417 | -4/Factory | Scrapoid reinforcements arrived 14509 | -4/Factory | P-70 Sage assimilated allied 04F03-D 14548 | -4/Factory | Lost 3 allies 14573 | -4/Factory | Discovered new exit (range 15) 14747 | -4/Factory | Lost 6 parts (1p1n4w) 15022 | -4/Factory | Lost 8 parts (3p2n2u1w) 15081 | -4/Factory | System corruption reached 10% 15110 | -4/Factory | Core integrity fell below 50% 15122 | -4/Factory | Entered Armory 15152 | -4/Armory | Lost 10 parts (2p1n5u2w) 15167 | -4/Armory | Core integrity fell below 20% 15394 | -4/Armory | Identified Transdimensional Reconstructor 15394 | -4/Armory | Warped through subspace to slip node 15394 | -4/Armory | Discovered new exit (range 1) 15394 | -4/Armory | Identified exit to Lab 15395 | -4/Armory | Entered Lab 15395 | -4/Lab | Discovered new exit (range 9) 15399 | -4/Lab | Identified exit to Research 15403 | -4/Lab | Unable to decrypt terminal 15403 | -4/Lab | Opened the door to a hidden lab 15404 | -4/Lab | Gained access to the hidden lab's interior 15410 | -4/Lab | Detected by scanners 15413 | -4/Lab | Entered Research 15413 | -3/Research | Evolved 2 slots: Power x1, Utility x1 15444 | -3/Research | Found Prototype Processor 15444 | -3/Research | Identified Spectral Analyzer 15586 | -3/Research | Incoming investigation squad redirected 15779 | -3/Research | Lost 4 parts (2p1n1w) 16043 | -3/Research | Lost 13 parts (2p4n4u3w) 16068 | -3/Research | Discovered new exit (range 12) 16168 | -3/Research | Identified exit to Testing 16207 | -3/Research | Discovered new exit (range 9) 16243 | -3/Research | Entered Testing 16271 | -3/Testing | Found Prototype Processor 16271 | -3/Testing | Identified Exp. Signal Interpreter 16275 | -3/Testing | System corruption reached 10% 16334 | -3/Testing | Build established: Scavenger-Gunner 16359 | -3/Testing | Protovariant out of control (PX-31EJA2T4WS) 16384 | -3/Testing | Found Prototype Ballistic Gun 16385 | -3/Testing | Identified Hyp. Multirail 16390 | -3/Testing | Incoming assault squad redirected 16772 | -3/Testing | Destroyed 7 combat bots 16971 | -3/Testing | Found Prototype Energy Cannon 16971 | -3/Testing | Identified Cld. Nova Cannon 17260 | -3/Testing | Spotted Striker 17261 | -3/Testing | Spotted Striker 17273 | -3/Testing | Destroyed Striker 17280 | -3/Testing | Destroyed Striker 17513 | -3/Testing | Found Prototype Energy Cannon 17516 | -3/Testing | Identified Disintegrator 17541 | -3/Testing | First assault squad dispatched 17564 | -3/Testing | Incoming assault squad redirected 17571 | -3/Testing | Incoming assault squad redirected 17575 | -3/Testing | Identified exit to Research 17595 | -3/Testing | Garrison activated, responded to threat 17799 | -3/Testing | Incoming assault squad redirected 17805 | -3/Testing | System corruption reached 30% 17827 | -3/Testing | Core integrity fell below 50% 17868 | -3/Testing | Core integrity fell below 20% 17915 | -3/Testing | Lost 21 parts (3p4n8u6w) 17950 | -3/Testing | Intercept squad dispatched 17954 | -3/Testing | Spotted Tracker 17955 | -3/Testing | Spotted Tracker 17965 | -3/Testing | Destroyed by Tracker with Linked Autogun Last Messages --------------- 17932_ Acquired 57 matter. 17934_ Extracted 50 matter. 17937_ System corrupted: Matter fused (-7). 17941_ Acquired Myomer Leg. 17943_ Acquired 1 matter. 17947_ K-01 Serf collects debris. 17950_ ALERT: Reliable intel has pinpointed LRC-V3, intercept squad en route. 17950_ Acquired Sml. Matter Pod. 17952_ Acquired 4 matter. 17953_ K-01 Serf collects debris. 17955_ System corrupted: Matter fused (-10). 17956_ K-01 Serf collects debris. 17956_ Helical Railgun destroyed. 17956_ Acquired Sml. Matter Pod. 17959_ K-01 Serf collects debris. 17961_ Myomer Leg destroyed. 17963_ Lgt. Antimatter Reactor destroyed. 17963_ Sml. Matter Pod destroyed. 17963_ K-01 Serf collects debris. Map ----- +----------------------------------------------------+ | # #" [![+ ##????######?????# # | | ######### #""" =# ###??????????????###+####### | | ???????## #""" !# # ###??????????????# #? | | ??####### # [# %# #?????#######??#" "#? | | ######### ####### # ###?????#""" ##??#"" ""#? | | # ####### # #???????#"==*""###" "#? | | # #### %###???????# %[*[####"" "##? | | # #### #########?#"%!=""##??# #??? | | # #### #########?# !*#?????##"#??? | | # ####### %# #"""#####!=%#??????# #??? | | = + ####### %####"T"######+##??????# #??? | | ! # ### ###%]!% ! %! ##??????###??? | | # %####### ! * *########?????? | | # [ ! ]!!############!!# #?????? | | ####+#####+#########! " % ###### #[|# "" #?????? | | ??## ! ###^^# #####????#%%#["T* =#?????? | | ??## ### # ### #????#*=+ "" #?????? | | ??## %### # ### ?????#=*#! == #?????? | | ??## """" """" %### %## #;####?# # [ [=##????? | | ??## """" """" !### ## ;"""#?# ######## #???? | | ??## """" """" =## ####;#"T"### #?????### #??? | | ??## """" """ "## ###!% # ##????####" ?? | | ??## " " ### ### % "" # "#???# ### ? | | ???# =### # #%% [ # R##??# %# | | ???# """"T""""%%### #%#% = ! s ; w######""%###/# | | ???# """""""""""%### # #@ ! s%R R =! ] | | ???################# # #%=%% ; % [%= ! | | ??????############## %###=k% # ######## % !"" | | ??????????????????## ### *# ##???# # "G"" | | ??????????????????## ### ! # #??????#??#### | | ??????????????????## ############ #????????????? | | ??????????????????## ##?????????# #????????????? | | ?????????????????? ???????????# ????????????? | | ??????????????????? ?????????? ????????????? | | ???????????????????#+##??????????#+##????????????? | | ??????????????????? ??????????????????????????? | | ?????????????????????????????????????????????????? | | ?????????????????????????????????????????????????? | | ?????????????????????????????????????????????????? | | ?????????????????????????????????????????????????? | | ?????????????????????????????????????????????????? | | ?????????????????????????????????????????????????? | | | | | | | | | | | | | | | | | +----------------------------------------------------+ Best States ------------- Heat Dissipation 123 Energy Generation 61 Energy Capacity 900 Matter Stores 300 Matter Capacity 400 Sight Range 24 Terrain Scan Density 10 Jamming Range 16 Base Temperature (-) 200 EM Shielding 2 Armor Coverage 2100 Resistance: KI 20 Resistance: TH 40 Resistance: EX 20 Resistance: EM 20 Resistance: I 20 Resistance: S 20 Resistance: P 20 Propulsion Shielding 33 Utility Shielding 90 Evasion (%) 63 Targeting Accuracy 12 Melee Accuracy 8 Target Analysis 8 Recoil Reduction 4 Particle Charging 20 Salvage Targeting 4 Offensive Hacking 20 Defensive Hacking 14 Item Schematics ----------------- Lgt. Armor Plating | -10/Materials | Hacked CPS Tube | -6/Factory | Scanalyzed Combat Drone Bay | -6/Data Miner | Free Lgt. Regenerative Plating | -6/Data Miner | Free Cld. Gravmag System | -6/Data Miner | Free Imp. Matter Compressor | -6/Data Miner | Free Kinetic Spear | -6/Data Miner | Free Imp. Antigrav System | -6/Data Miner | Free Imp. Force Field | -6/Data Miner | Free Adv. Datajack | -6/Data Miner | Free Adv. Salvage Targeting Computer | -6/Data Miner | Free Imp. Fusion Compressor | -6/Data Miner | Free Adv. Cryofiber Web | -6/Data Miner | Free Multitool | -3/Research | Scanalyzed Robot Schematics ------------------ H-66 Slayer | -6/Data Miner | Free R-10 Processor | -6/Data Miner | Free B-48 Gladiator | -6/Data Miner | Free L-41 Fighter | -6/Data Miner | Free A-15 Conveyor | -6/Data Miner | Free A-27 Freighter | -6/Data Miner | Free Fabricated ------------ Nothing Alien Tech Used ----------------- Integrated Dissipator Transdimensional Reconstructor Achievements -------------- None Challenges ------------ None Game ------ Seed ControlGyrokineticStorage Manual? 0 Play Time 02:16:37 Cumulative 374.8 hours Start 2024.09.10 @ 00:15:05 End 2024.09.10 @ 02:39:38 Sessions 1 Manual Loads 0 Difficulty Adventurer Special Mode None Game No. 282 Rogue 63 Adventurer 193 Explorer 26 Win Type - Total 1 Types 1/0/0/0/0/0/0/0/0 Lore% 80 Gallery% 77 Achievement% 68 Wizard Run 0 Options --------- Layout 2 ASCII 0 Keyboard 0 Movement Mouse Keybinds 0 Fullscreen 0 Font 18/CogNarrow Map View 64x51 Zoom Use 0% Tactical HUD 1 Map Filters NONE Filters BRIGHTNESS(115)|SATURATION(100)|LOW_CONTRAST(0,16,30) Steam 1 RUN: 84d8dd10-c5ce-4f0f-a242-3bffc8850c5b